bitfinex/quotes_SOLUSD_20250204
["timestamp","ask_amount","ask_price","bid_price","bid_amount"]
[1738701080540,0.50196,207.12,207.09,0.063]
[1738701080741,0.50196,207.1,207.09,0.063]
[1738701081060,0.37647,207.1,207.09,0.0001]
[1738701081237,0.50196,207.1,207.09,0.0001]
[1738701081632,5.33046,207.1,207.09,0.0001]
[1738701082437,5.20497,207.1,207.09,0.0001]
[1738701082643,5.33046,207.1,207.09,0.0001]
[1738701083160,5.20497,207.1,207.09,0.0001]
[1738701083463,5.07948,207.1,207.09,0.0001]
[1738701083662,7.1026,207.26,207.09,1.0001]
[1738701083869,16.8893,207.23,207.15,1.0]
[1738701084043,16.8893,207.23,207.13,40.28991257]
[1738701084240,4.8255,207.23,207.18,1.0]
[1738701084460,27.96913973,207.35,207.09,43.11861257]
[1738701084461,4.8236,207.31,207.22,1.0]
[1738701084661,4.8236,207.31,207.24,1.0]
[1738701084865,4.8236,207.31,207.26,1.0]
[1738701085044,16.8828,207.31,207.22,2.0]
[1738701085245,16.8828,207.31,207.23,1.0]
[1738701085448,4.8236,207.31,207.27,1.0]
[1738701085641,4.8209,207.43,207.32,1.0]
[1738701085938,4.8209,207.43,207.36,1.0]
[1738701086138,4.8209,207.43,207.34,2.0]
[1738701086352,4.8209,207.43,207.36,1.0]
[1738701086753,4.8192,207.5,207.41,2.0]
[1738701086964,0.03,207.51,207.48,1.0]
[1738701087263,0.03,207.51,207.5,1.0]
[1738701087460,0.37647,207.5,207.42,1.0]
[1738701087661,0.03,207.51,207.44,1.0]
[1738701087965,4.8195,207.49,207.41,1.0]
[1738701088261,4.8195,207.49,207.44,1.0]
[1738701088560,0.03,207.51,207.43,39.28991257]
[1738701088762,0.37647,207.5,207.43,39.28991257]
[1738701088949,4.8491,207.51,207.45,1.0]
[1738701089155,4.8491,207.51,207.42,1.0]
[1738701089156,0.12549,207.49,207.42,1.0]
[1738701089358,0.12549,207.44,207.34,1.0]
[1738701089556,0.12549,207.4,207.32,1.0]
[1738701089741,0.03,207.44,207.34,38.28991257]
[1738701089941,20.0,207.42,207.37,1.0]
[1738701090159,0.12549,207.4,207.33,2.0]
[1738701090364,0.25098,207.4,207.31,2.063]
[1738701090544,0.12549,207.38,207.31,1.063]
[1738701090749,0.12549,207.38,207.33,1.0]
[1738701090951,20.0,207.42,207.32,1.0]
[1738701091283,0.37647,207.33,207.31,0.063]
[1738701091583,0.25098,207.33,207.31,0.063]
[1738701091759,5.07438,207.32,207.31,0.063]
[1738701092088,0.25098,207.28,207.22,1.0]
[1738701092376,0.12549,207.23,207.15,1.0]
[1738701092577,0.12549,207.24,207.21,1.0]
[1738701093145,16.882,207.32,207.2,1.0]
[1738701093346,16.882,207.32,207.1,5.61540075]
[1738701093347,33.91380853,207.28,207.11,1.0]
[1738701093586,33.91380853,207.28,207.14,1.0]
[1738701093887,0.37647,207.18,207.12,1.0]
[1738701094362,41.0092,207.27,207.16,1.0]
[1738701094683,4.8246,207.27,207.17,38.28991257]
[1738701094854,20.37647,207.23,207.18,1.0]
[1738701095045,20.25098,207.23,207.2,1.0]
[1738701095241,16.8861,207.27,207.2,1.0]
[1738701095481,41.0092,207.27,207.16,1.0]
[1738701095659,20.0,207.24,207.16,1.0]
[1738701095853,0.25098,207.22,207.16,1.0]
[1738701096355,4.8232,207.33,207.25,1.0]
[1738701096560,4.8232,207.33,207.29,1.0]
[1738701096760,12.0547,207.39,207.31,1.0]
[1738701096959,4.822,207.38,207.33,1.0]
[1738701097182,4.822,207.38,207.29,2.0]
[1738701097473,4.8209,207.43,207.35,1.0]
[1738701097651,4.8209,207.43,207.34,1.0]
[1738701097849,4.8209,207.43,207.25,1.0]
[1738701097850,20.50196,207.39,207.25,1.0]
[1738701098067,0.37647,207.34,207.25,1.0]
[1738701098266,0.37647,207.34,207.2,1.0]
[1738701098267,13.53733853,207.33,207.2,1.0]
[1738701098470,0.37647,207.25,207.18,1.0]
[1738701098672,0.37647,207.25,207.22,1.0]
[1738701098972,7.1,207.38,207.26,1.0]
[1738701099172,33.91380853,207.34,207.25,1.0]
[1738701099385,33.91380853,207.34,207.28,1.0]
[1738701099553,33.91380853,207.34,207.17,13.41184853]
[1738701099554,0.25098,207.34,207.32,1.0]
[1738701100078,0.25098,207.32,207.27,1.0]
[1738701100249,0.25098,207.32,207.24,39.28991257]
[1738701100250,0.12549,207.29,207.24,1.0]
[1738701100450,0.12549,207.29,207.23,1.0]
[1738701100762,0.12549,207.25,207.21,1.0]
[1738701101070,0.12549,207.26,207.17,1.0]
[1738701101248,0.37647,207.24,207.17,1.0]
[1738701101448,0.37647,207.24,207.16,1.0]
[1738701101649,20.0,207.25,207.15,1.0]
[1738701101650,0.37647,207.22,207.15,1.0]
[1738701101890,20.0,207.18,207.12,1.0]
[1738701102066,0.37647,207.12,207.1,0.063]
[1738701102264,0.12549,207.15,207.08,0.0001]
[1738701102678,2.058442,207.15,207.08,0.0001]
[1738701103088,0.12549,207.13,207.08,0.0001]
[1738701103266,0.12549,207.13,206.91,1.0]
[1738701103656,0.12549,207.13,206.98,1.0]
[1738701103880,0.12549,207.13,206.97,1.0]
[1738701103881,0.12549,207.13,206.94,1.0]
[1738701104094,13.53733853,207.11,206.9,1.0]
[1738701104399,20.0,207.01,206.87,2.063]
[1738701104679,0.50196,206.93,206.87,0.063]
[1738701104866,0.50196,206.88,206.87,0.0001]
[1738701105078,13.91380853,206.88,206.87,0.0001]
[1738701105388,1.22034908,206.91,206.76,0.063]
[1738701105389,0.25098,206.79,206.76,0.063]
[1738701105760,1.22034908,206.91,206.76,1.063]
[1738701105963,16.9163,206.9,206.81,1.0]
[1738701106162,4.8332,206.9,206.86,1.0]
[1738701106356,4.8323,206.94,206.86,1.0]
[1738701106584,4.8323,206.94,206.89,1.0]
[1738701106761,4.8311,206.99,206.89,2.0]
[1738701107093,12.0741,207.06,206.91,1.0]
[1738701107264,12.0741,207.06,206.95,1.0]
[1738701107458,13.91380853,207.02,206.91,1.0]
[1738701107662,13.91380853,206.98,206.91,1.0]
[1738701108067,4.8297,207.05,206.96,1.0]
[1738701108421,4.8297,207.05,206.94,1.0]
[1738701108422,4.8297,207.05,206.94,2.0]
[1738701108690,4.8276,207.14,207.03,1.0]
[1738701108857,16.8967,207.14,207.03,1.0]
[1738701109061,16.8967,207.14,207.0,1.0]
[1738701109266,13.91380853,207.13,206.99,1.0]
[1738701109470,16.8967,207.14,207.0,1.0]
[1738701109689,16.8967,207.14,207.03,1.0]
[1738701109874,13.41184853,207.07,206.9,13.4111]
[1738701110181,0.50196,206.96,206.9,12.4111]
[1738701110354,20.0,206.99,206.89,1.0]
[1738701110558,13.91380853,206.98,206.87,9.5688]
[1738701110977,0.37647,206.98,206.89,2.0]
[1738701111180,0.12549,206.97,206.88,1.0]
[1738701111367,20.25098,206.98,206.94,1.0]
[1738701111567,20.25098,206.98,206.87,7.5688]
[1738701111568,20.0,206.98,206.86,1.0]
[1738701111767,0.50196,206.89,206.81,1.0]
[1738701112070,0.25098,206.82,206.76,1.063]
[1738701112289,0.12549,206.82,206.77,1.0]
[1738701112494,0.12549,206.82,206.76,0.063]
[1738701112890,0.25098,206.82,206.76,0.063]
[1738701113202,0.25098,206.81,206.77,1.0]
[1738701113503,20.0,206.9,206.76,1.063]
[1738701113717,13.91380853,206.85,206.78,1.0]
[1738701113878,4.8346,206.84,206.78,1.0]
[1738701114198,0.25098,206.83,206.78,1.0]
[1738701114405,0.12549,206.83,206.82,2.0]
[1738701114586,28.9924,206.95,206.76,0.063]
[1738701114790,33.91380853,206.91,206.76,0.0001]
[1738701114994,20.50196,206.86,206.76,0.0001]
[1738701115193,0.50196,206.81,206.76,0.0001]
[1738701115397,33.91380853,206.77,206.76,0.0001]
[1738701115597,33.91380853,206.77,206.66,0.063]
[1738701115598,0.50196,206.74,206.66,0.063]
[1738701115804,13.41184853,206.71,206.57,1.0]
[1738701116098,16.9359,206.66,206.55,0.063]
[1738701116301,16.9359,206.66,206.6,1.0]
[1738701116302,4.8388,206.66,206.6,1.0]
[1738701116599,24.8385,206.68,206.65,1.0]
[1738701116804,36.9344,206.68,206.56,1.0]
[1738701116990,4.8385,206.68,206.63,1.0]
[1738701117189,4.8385,206.68,206.55,1.063]
[1738701117387,13.91380853,206.63,206.55,0.063]
[1738701118200,20.0,206.59,206.55,0.063]
[1738701118704,20.37647,206.56,206.55,0.063]
[1738701118915,0.50196,206.55,206.43,2.0]
[1738701119114,0.50196,206.55,206.43,1.0]
[1738701119320,0.50196,206.55,206.41,1.063]
[1738701119321,0.37647,206.55,206.49,1.0]
[1738701119490,0.37647,206.55,206.41,4.9076]
[1738701119491,4.8398,206.62,206.53,1.0]
[1738701119676,4.8362,206.77,206.6,2.0]
[1738701119899,42.32851023,206.77,206.64,2.0]
[1738701120084,41.1083,206.77,206.67,1.0]
[1738701120284,16.9269,206.77,206.67,1.0]
[1738701120520,16.9269,206.77,206.68,1.0]
[1738701120816,4.8362,206.77,206.7,1.0]
[1738701120983,92.8884,206.81,206.75,1.0]
[1738701121186,80.8,206.81,206.78,1.0]
[1738701121379,13.91380853,206.8,206.68,2.0]
[1738701121601,0.37647,206.72,206.65,2.0]
[1738701121801,97.7237,206.81,206.73,1.0]
[1738701121999,12.0853,206.87,206.75,1.0]
[1738701122302,0.25098,206.85,206.72,2.0]
[1738701122599,0.12549,206.7,206.64,1.0]
[1738701122808,0.25098,206.68,206.64,1.0]
[1738701122993,0.25098,206.68,206.66,1.0]
[1738701123195,82.00846045,206.83,206.7,1.0]
[1738701123392,82.00846045,206.83,206.73,2.0]
[1738701123393,80.8,206.83,206.73,2.0]
[1738701123613,80.8,206.83,206.77,1.0]
[1738701123807,29.0008,206.89,206.64,5.96469]
[1738701123808,4.8334,206.89,206.81,1.0]
[1738701124112,4.8334,206.89,206.86,1.0]
[1738701124310,4.8334,206.89,206.75,1.0]
[1738701124311,13.91380853,206.88,206.75,1.0]
[1738701124509,13.91380853,206.88,206.76,1.0]
[1738701124809,0.25098,206.88,206.81,1.0]
[1738701125010,4.8334,206.89,206.76,38.28991257]
[1738701125011,4.8334,206.89,206.76,1.0]
[1738701125208,4.8334,206.89,206.8,1.0]
[1738701125428,0.03,206.83,206.82,2.0]
[1738701125989,0.03,206.83,206.8,14.2182]
[1738701126188,0.03,206.83,206.76,1.0]
[1738701126499,0.03,206.83,206.7,1.0]
[1738701126702,0.03,206.83,206.7,2.0]
[1738701126885,0.50196,206.74,206.69,1.0]
[1738701127227,0.50196,206.74,206.66,1.0]
[1738701127228,0.37647,206.67,206.63,1.0]
[1738701127514,0.25098,206.62,206.57,14.2182]
[1738701127717,0.25098,206.6,206.57,14.2182]
[1738701127905,0.25098,206.6,206.51,7.7589]
[1738701127906,20.25098,206.53,206.5,1.0]
[1738701128215,13.66282853,206.51,206.46,14.2182]
[1738701128522,0.12549,206.46,206.41,0.063]
[1738701128695,20.0,206.42,206.41,0.063]
[1738701128897,0.25098,206.42,206.41,1.063]
[1738701129123,0.25098,206.42,206.41,0.063]
[1738701129620,0.25098,206.42,206.41,0.0001]
[1738701130224,5.09538,206.42,206.41,0.0001]
[1738701130520,4.8444,206.42,206.37,2.0]
[1738701131021,4.8433,206.47,206.37,1.0]
[1738701131322,13.91380853,206.46,206.36,1.0]
[1738701131621,13.91380853,206.42,206.35,0.063]
[1738701132009,13.91380853,206.42,206.38,1.0]
[1738701132207,4.8447,206.41,206.35,0.063]
[1738701132508,33.91380853,206.37,206.35,0.063]
[1738701132818,33.91380853,206.37,206.25,1.0]
[1738701133019,33.91380853,206.37,206.29,2.0]
[1738701133428,33.91380853,206.37,206.31,1.0]
[1738701133619,33.78831853,206.37,206.31,1.0]
[1738701133822,33.78831853,206.37,206.34,1.0]
[1738701134013,4.8437,206.45,206.38,2.0]
[1738701134214,24.2075,206.55,206.43,1.0]
[1738701134215,4.8421,206.52,206.43,1.0]
[1738701134409,13.91380853,206.5,206.39,1.0]
[1738701134606,0.37647,206.5,206.37,1.0]
[1738701134918,20.0,206.48,206.35,2.0]
[1738701135221,20.0,206.48,206.31,38.28991257]
[1738701135222,20.0,206.4,206.39,2.0]
[1738701135526,20.0,206.4,206.34,38.28991257]
[1738701135527,4.8421,206.52,206.48,1.0]
[1738701135700,20.0,206.49,206.42,1.0]
[1738701136118,1.22600983,206.59,206.45,2.0]
[1738701136323,16.9425,206.58,206.52,1.0]
[1738701136527,4.8407,206.58,206.53,2.0]
[1738701136929,4.8407,206.58,206.51,1.0]
[1738701137241,4.8407,206.58,206.56,2.0]
[1738701138121,33.91380853,206.54,206.44,2.0]
[1738701138329,20.25098,206.45,206.42,14.0208]
[1738701138517,13.78831853,206.44,206.4,1.0]
[1738701138735,0.25098,206.4,206.39,0.03]
[1738701139112,0.25098,206.4,206.39,1.03]
[1738701139417,0.37647,206.4,206.39,0.0001]
[1738701139618,13.91380853,206.4,206.39,0.0001]
[1738701140118,20.0,206.37,206.27,1.0]
[1738701140316,33.91380853,206.32,206.23,1.0]
[1738701140518,33.91380853,206.32,206.25,1.0]
[1738701140519,33.78831853,206.32,206.25,1.0]
[1738701140712,33.78831853,206.32,206.22,1.0]
[1738701140909,0.12549,206.31,206.21,1.0]
[1738701141226,0.12549,206.31,206.22,1.0]
[1738701141407,0.12549,206.31,206.27,2.0]
[1738701141602,4.8461,206.35,206.28,1.0]
[1738701141808,4.8461,206.35,206.22,2.0]
[1738701141809,16.9614,206.35,206.22,2.0]
[1738701142019,20.0,206.32,206.31,1.0]
[1738701142199,20.0,206.32,206.31,2.0]
[1738701142548,4.844,206.44,206.4,1.0]
[1738701142749,16.9474,206.52,206.45,1.0]
[1738701142908,16.9474,206.52,206.47,2.0]
[1738701143104,4.8421,206.52,206.48,2.0]
[1738701143461,4.8421,206.52,206.51,1.0]
[1738701143821,4.8421,206.52,206.49,1.0]
[1738701144022,16.9474,206.52,206.4,1.0]
[1738701144236,32.1053,206.52,206.38,14.4959]
[1738701144416,33.91380853,206.48,206.35,2.0]
[1738701144616,33.91380853,206.48,206.39,1.0]
[1738701144815,33.91380853,206.48,206.41,1.0]
[1738701145046,33.91380853,206.48,206.46,1.0]
[1738701145047,13.91380853,206.48,206.46,1.0]
[1738701145224,13.91380853,206.48,206.37,0.89949547]
[1738701145536,13.91380853,206.48,206.3,38.28991257]
[1738701145537,13.91380853,206.48,206.35,0.89949547]
[1738701145957,0.50196,206.41,206.28,0.89949547]
[1738701146112,0.50196,206.36,206.28,0.89949547]
[1738701146311,0.25098,206.31,206.28,0.89949547]
[1738701146508,20.0,206.29,206.28,0.89949547]
[1738701146815,16.9515,206.47,206.34,0.89949547]
[1738701147017,33.41184853,206.43,206.31,0.89949547]
[1738701147529,20.0,206.38,206.31,0.89949547]
[1738701147832,20.0,206.44,206.38,0.89949547]
[1738701148016,16.9515,206.47,206.43,0.89949547]
[1738701148223,16.9515,206.47,206.4,0.89949547]
[1738701148418,13.41184853,206.46,206.42,0.89949547]
[1738701148625,80.8,206.51,206.47,0.89949547]
[1738701148626,4.8426,206.5,206.47,0.89949547]
[1738701148831,16.9491,206.5,206.42,0.89949547]
[1738701149132,41.1421,206.6,206.42,0.89949547]
[1738701149333,0.10050453,206.54,206.38,0.89949547]
[1738701149513,0.50196,206.52,206.38,0.89949547]
[1738701149723,0.37647,206.42,206.36,0.89949547]
[1738701149930,0.25098,206.42,206.41,0.89949547]
[1738701150236,86.49147393,206.59,206.48,0.89949547]
[1738701150452,65.3434,206.6,206.47,0.89949547]
[1738701150628,15.01431306,206.56,206.38,0.89949547]
[1738701150828,20.0,206.51,206.38,0.89949547]
[1738701151030,20.0,206.51,206.41,0.89949547]
[1738701151247,20.0,206.51,206.48,0.89949547]
[1738701151441,65.3434,206.6,206.4,38.28991257]
[1738701151442,65.3434,206.6,206.52,0.89949547]
[1738701151748,0.50196,206.56,206.43,0.89949547]
[1738701151932,0.50196,206.56,206.4,0.89949547]
[1738701152134,0.50196,206.45,206.38,0.89949547]
[1738701152341,0.25098,206.4,206.38,0.89949547]
[1738701152538,4.8451,206.39,206.36,0.89949547]
[1738701153052,24.8448,206.41,206.36,0.89949547]
[1738701153241,0.37647,206.4,206.36,0.89949547]
[1738701153757,4.8448,206.41,206.3,38.28991257]
[1738701153758,0.25098,206.32,206.3,0.89949547]
[1738701154156,0.25098,206.32,206.28,0.03]
[1738701154361,7.1,206.48,206.29,0.89949547]
[1738701154530,20.0,206.38,206.36,0.89949547]
[1738701154853,0.10050453,206.53,206.29,38.28991257]
[1738701154854,12.1098,206.45,206.4,0.89949547]
[1738701155057,4.8433,206.47,206.43,0.89949547]
[1738701155241,4.8407,206.58,206.48,0.89949547]
[1738701155561,4.8407,206.58,206.57,0.89949547]
[1738701155751,4.8407,206.58,206.55,0.89949547]
[1738701155950,24.215457,206.65,206.64,0.89949547]
[1738701156141,0.063,206.66,206.64,0.89949547]
[1738701156552,0.063,206.66,206.65,38.28991257]
[1738701156942,0.063,206.78,206.77,0.89949547]
[1738701157537,20.063,206.78,206.77,0.89949547]
[1738701157738,20.063,206.78,206.69,13.03729547]
[1738701158161,0.25098,206.76,206.69,13.03729547]
[1738701158344,0.063,206.78,206.77,0.89949547]
[1738701159249,6.70790901,206.81,206.8,0.89949547]
[1738701159846,13.41581803,206.82,206.8,0.89949547]
[1738701159847,0.03,206.98,206.8,0.89949547]
[1738701160161,4.8335,206.89,206.82,0.89949547]
[1738701160365,4.8343,206.86,206.82,0.89949547]
[1738701160579,12.20699,206.93,206.82,0.89949547]
[1738701160580,0.12549,206.84,206.82,0.89949547]
[1738701160752,0.28098,206.83,206.82,0.89949547]
[1738701161076,0.03,206.83,206.82,0.89949547]
[1738701161242,4.8327,206.92,206.91,0.89949547]
[1738701161438,12.1089,206.98,206.96,0.89949547]
[1738701161439,4.8316,206.97,206.96,0.89949547]
[1738701161652,12.1089,206.98,206.94,0.89949547]
[1738701161653,0.03,206.98,206.94,0.89949547]
[1738701161842,20.0,206.96,206.94,0.89949547]
[1738701162055,4.8316,206.97,206.91,0.89949547]
[1738701162247,4.8316,206.97,206.95,0.89949547]
[1738701162449,0.03,206.98,206.97,0.89949547]
[1738701162846,4.8276,207.14,207.03,0.89949547]
[1738701163052,16.8967,207.14,207.03,0.89949547]
[1738701163246,4.8276,207.14,207.11,0.89949547]
[1738701163546,16.8967,207.14,207.07,0.89949547]
[1738701163749,16.8967,207.14,207.08,0.89949547]
[1738701163949,4.8276,207.14,207.12,0.89949547]
[1738701164260,13.91380853,207.1,207.05,0.89949547]
[1738701164448,13.91380853,207.1,207.03,0.89949547]
[1738701164763,41.0349,207.14,207.03,0.89949547]
[1738701164764,20.37647,207.05,207.03,0.89949547]
[1738701165063,20.0,207.06,207.03,0.89949547]
[1738701165257,20.0,207.06,207.0,0.89949547]
[1738701165459,13.91380853,207.05,207.0,0.89949547]
[1738701165959,4.8288,207.09,207.02,0.89949547]
[1738701166140,4.8288,207.09,207.08,0.89949547]
[1738701166336,80.8,207.25,207.08,0.89949547]
[1738701166542,12.0673,207.18,207.16,0.89949547]
[1738701166861,12.0673,207.18,207.13,0.89949547]
[1738701167161,12.0673,207.18,206.97,0.72450565]
[1738701167162,33.91380853,207.14,206.98,38.28991257]
[1738701167361,33.91380853,207.14,206.94,38.28991257]
[1738701167539,33.91380853,207.14,206.96,38.28991257]
[1738701167740,33.91380853,207.14,206.98,38.28991257]
[1738701167941,34.91380853,207.14,206.92,13.1789]
[1738701168137,39.60528246,207.14,206.92,13.1789]
[1738701168370,40.60528246,207.14,206.92,13.1789]
[1738701168547,20.0,207.1,206.92,13.1789]
[1738701168867,0.37647,206.99,206.92,13.1789]
[1738701169067,0.12549,206.97,206.92,13.1789]
[1738701169368,6.69147393,207.14,206.92,13.1789]
[1738701169566,20.0,207.09,206.92,13.1789]
[1738701169755,0.50196,207.0,206.92,13.1789]
[1738701169942,13.41184853,206.94,206.87,7.6928]
[1738701170261,20.0,206.96,206.87,7.6928]
[1738701170562,1.50196,207.01,206.82,12.5222]
[1738701170860,13.41184853,206.96,206.82,12.5222]
[1738701171039,0.50196,206.93,206.75,45.97031257]
[1738701171238,0.50196,206.89,206.75,7.6804]
[1738701171443,0.50196,206.87,206.75,7.6804]
[1738701171659,0.50196,206.83,206.75,7.6804]
[1738701171859,0.50196,206.81,206.73,12.5222]
[1738701172558,1.22443477,206.93,206.65,7.6804]
[1738701172559,0.12549,206.73,206.65,7.6804]
[1738701172764,0.12549,206.7,206.65,7.6804]
[1738701172955,0.12549,206.7,206.63,12.5222]
[1738701173157,20.0,206.69,206.63,12.5222]
[1738701173353,0.12549,206.67,206.63,12.5222]
[1738701173664,4.8374,206.72,206.64,38.28991257]
[1738701173869,4.8374,206.72,206.63,12.5222]
[1738701174071,0.12549,206.68,206.63,12.5222]
[1738701174275,0.37647,206.69,206.55,45.97031257]
[1738701174276,0.37647,206.64,206.55,45.97031257]
[1738701174448,0.37647,206.62,206.55,7.6804]
[1738701174646,0.25098,206.59,206.54,13.0843]
[1738701174859,4.8402,206.6,206.54,13.0843]
[1738701175272,4.8381,206.69,206.58,38.28991257]
[1738701175459,20.0,206.65,206.54,51.37421257]
[1738701175668,33.91380853,206.65,206.54,13.0843]
[1738701175876,33.91380853,206.65,206.52,38.28991257]
[1738701176052,33.78831853,206.65,206.54,1.0]
[1738701176252,4.8381,206.69,206.62,38.28991257]
[1738701176461,4.8381,206.69,206.6,38.28991257]
[1738701176766,16.9278,206.76,206.58,38.28991257]
[1738701176966,33.91380853,206.72,206.58,38.28991257]
[1738701177157,33.91380853,206.72,206.6,38.28991257]
[1738701177559,34.91380853,206.72,206.53,38.28991257]
[1738701177765,34.91380853,206.72,206.49,1.0]
[1738701177766,33.91380853,206.72,206.51,38.28991257]
[1738701177958,33.91380853,206.72,206.45,21.6046]
[1738701177959,1.0,206.69,206.45,21.6046]
[1738701178175,20.0,206.72,206.49,38.28991257]
[1738701178176,0.50196,206.58,206.49,38.28991257]
[1738701178347,13.78831853,206.55,206.47,38.28991257]
[1738701178548,13.91380853,206.51,206.45,20.6046]
[1738701178753,13.91380853,206.51,206.34,0.75650993]
[1738701178754,0.25098,206.48,206.41,38.28991257]
[1738701178947,4.8426,206.5,206.45,38.28991257]
[1738701179181,13.41184853,206.49,206.39,38.28991257]
[1738701179570,0.12549,206.46,206.39,38.28991257]
[1738701179771,13.41184853,206.43,206.35,50.77401257]
[1738701179956,0.12549,206.42,206.35,50.77401257]
[1738701180273,13.91380853,206.42,206.34,7.4046]
[1738701180653,13.91380853,206.38,206.34,0.03]
[1738701180854,33.91380853,206.35,206.34,0.03]
[1738701181174,0.37647,206.3,206.28,0.03]
[1738701181480,13.91380853,206.29,206.28,0.03]
[1738701182075,0.25098,206.29,206.28,0.03]
[1738701182267,80.8,206.36,206.28,0.03]
[1738701182697,20.0,206.33,206.28,0.03]
[1738701182975,13.91380853,206.31,206.28,0.0001]
[1738701184172,0.50196,206.23,206.18,0.03]
[1738701184372,20.37647,206.19,206.18,0.03]
[1738701184558,33.91380853,206.19,206.18,0.0001]
[1738701185183,4.8484,206.25,206.18,0.0001]
[1738701185477,13.53733853,206.22,206.18,0.0001]
[1738701185660,33.78831853,206.19,206.18,0.0001]
[1738701185855,33.91380853,206.19,206.18,0.0001]
[1738701186376,13.78831853,206.19,206.18,0.0001]
[1738701186873,18.63811853,206.19,206.18,0.0001]
[1738701187077,13.91380853,206.19,206.18,0.0001]
[1738701188367,20.0,206.11,206.07,0.03]
[1738701188575,20.50196,206.08,206.07,0.03]
[1738701188769,38.76620853,206.08,206.07,0.03]
[1738701189675,20.0,206.04,206.03,0.0001]
[1738701190385,20.0,206.05,206.03,0.0001]
[1738701190677,13.91380853,206.04,206.03,0.0001]
[1738701190862,20.0,206.09,206.03,0.0001]
[1738701191063,1.0,206.24,206.04,38.28991257]
[1738701191263,16.9712,206.23,206.08,38.28991257]
[1738701191464,41.2159,206.23,206.06,38.28991257]
[1738701191671,41.2159,206.23,206.08,38.28991257]
[1738701192056,16.9712,206.23,206.1,38.28991257]
[1738701192255,16.9712,206.23,206.12,38.28991257]
[1738701192484,16.9712,206.23,206.08,38.28991257]
[1738701192680,33.91380853,206.19,206.08,38.28991257]
[1738701192890,33.91380853,206.19,206.03,0.0001]
[1738701192891,0.25098,206.14,206.04,38.28991257]
[1738701193279,4.8501,206.18,206.08,38.28991257]
[1738701193498,4.8494,206.21,206.12,38.28991257]
[1738701193661,13.91380853,206.2,206.06,38.28991257]
[1738701194285,13.91380853,206.2,206.03,0.0001]
[1738701194583,33.91380853,206.17,206.03,0.0001]
[1738701194963,20.0,206.13,206.03,0.0001]
[1738701195698,16.9771,206.16,206.06,38.28991257]
[1738701195699,4.8506,206.16,206.06,38.28991257]
[1738701195999,43.659872,206.22,206.06,38.28991257]
[1738701196000,24.263272,206.22,206.13,38.28991257]
[1738701196366,19.413972,206.22,206.15,38.28991257]
[1738701196584,16.9705,206.24,206.1,12.2061]
[1738701196769,0.12549,206.23,206.1,12.2061]
[1738701196971,0.37647,206.18,206.05,38.28991257]
[1738701197172,0.37647,206.18,206.03,4.8537]
[1738701197173,20.0,206.1,206.03,0.0001]
[1738701197473,0.25098,206.09,206.03,0.0001]
[1738701197667,0.12549,206.13,206.03,0.0001]
[1738701198003,1.19828216,206.19,206.09,38.28991257]
[1738701198201,21.19828216,206.19,206.03,0.0001]
[1738701198406,13.91380853,206.14,206.03,0.0001]
[1738701198563,1.19828216,206.19,206.03,0.0001]
[1738701198564,13.91380853,206.1,206.03,0.0001]
[1738701198772,13.66282853,206.06,206.03,0.0001]
[1738701199286,0.25098,206.06,206.03,0.0001]
[1738701199879,0.25098,206.05,206.03,0.0001]
[1738701200189,13.91380853,206.04,206.03,0.0001]